bitfinex-derivatives/quotes_ETHF0:USTF0_20210705
["timestamp","ask_amount","ask_price","bid_price","bid_amount"]
[1625462763042,57.18564,2255.4,2255.3,2.20527]
[1625462763744,57.18564,2255.4,2254.8,2.60959289]
[1625462763844,57.18564,2255.4,2254.7,14.353]
[1625462764898,4.41054,2254.8,2254.7,14.353]
[1625462764999,4.41054,2254.8,2254.1,2.60694548]
[1625462765000,7.70244,2254.8,2254.1,2.60694548]
[1625462765099,47.608,2254.2,2254.1,2.60694548]
[1625462765202,48.608,2254.2,2254.1,2.60694548]
[1625462765715,48.608,2254.2,2253.8,4.81238349]
[1625462765914,3.2512,2254.2,2253.8,2.20527]
[1625462766365,3.2512,2254.2,2253.9,16.093341]
[1625462766667,3.2512,2254.2,2253.8,2.20527]
[1625462766867,4.41054,2253.9,2253.8,2.20527]
[1625462766966,5.41054,2253.9,2253.8,2.20527]
[1625462767971,5.41054,2253.9,2253.6,2.20527]
[1625462769021,5.41054,2253.9,2253.2,2.20527]
[1625462769121,46.2769,2253.3,2253.2,2.20527]
[1625462769220,49.5103,2253.3,2252.3,2.59933385]
[1625462769371,49.5103,2253.3,2252.1,16.32213133]
[1625462769570,3.2334,2253.3,2252.1,16.32213133]
[1625462769670,3.2334,2253.3,2252.1,2.59973133]
[1625462769872,3.2334,2253.3,2252.2,16.212751]
[1625462770625,1.0,2253.3,2252.2,16.212751]
[1625462770924,2.20527,2253.0,2252.9,2.20527]
[1625462771023,3.20527,2253.0,2252.9,2.20527]
[1625462772078,2.20527,2253.0,2252.9,2.20527]
[1625462772184,1.0,2253.4,2252.9,2.20527]
[1625462772278,14.5339,2254.7,2252.9,2.20527]
[1625462772279,14.5339,2254.7,2252.9,5.72267]
[1625462772378,14.5339,2254.7,2252.9,21.854834]
[1625462772982,2.20527,2254.2,2254.1,2.20527]
[1625462773281,3.20527,2254.2,2254.1,2.20527]
[1625462774988,5.41054,2254.2,2254.1,2.20527]
[1625462775887,5.41054,2254.2,2254.1,18.254637]
[1625462776089,5.41054,2254.2,2254.1,2.20527]
[1625462776589,52.59704,2254.2,2254.1,2.20527]
[1625462777795,52.59704,2254.2,2253.8,2.20527]
[1625462777893,5.41054,2254.2,2253.8,2.20527]
[1625462778993,2.20527,2253.9,2253.8,2.20527]
[1625462779093,3.20527,2253.9,2253.8,2.20527]
[1625462779691,2.20527,2253.9,2253.8,2.20527]
[1625462779891,3.20527,2253.9,2253.8,2.20527]
[1625462780393,2.20527,2253.9,2253.8,2.20527]
[1625462780796,3.20527,2253.9,2253.8,2.20527]
[1625462782199,3.20527,2253.9,2253.4,2.20527]
[1625462783050,2.20527,2253.5,2253.4,2.20527]
[1625462783560,1.0,2253.8,2253.4,2.20527]
[1625462784671,2.20527,2253.9,2253.4,2.20527]
[1625462784772,3.20527,2253.9,2253.4,2.20527]
[1625462785078,2.20527,2253.5,2253.4,2.20527]
[1625462785177,3.20527,2253.5,2253.4,2.20527]
[1625462788592,3.20527,2253.5,2252.5,14.9254]
[1625462789146,2.20527,2253.0,2252.9,2.20527]
[1625462789245,4.61037,2253.0,2252.9,2.20527]
[1625462790746,5.61037,2253.0,2252.9,2.20527]
[1625462791196,7.81564,2253.0,2252.9,2.20527]
[1625462792409,6.81564,2253.0,2252.9,2.20527]
[1625462793062,2.4051,2253.0,2252.9,2.20527]
[1625462793162,2.20527,2253.3,2252.9,2.20527]
[1625462793570,2.20527,2253.3,2253.0,16.073395]
[1625462795123,2.20527,2253.3,2253.2,2.20527]
[1625462796727,3.20527,2253.3,2253.2,2.20527]
[1625462798133,2.20527,2253.3,2253.2,2.20527]
[1625462802034,3.20527,2253.3,2253.2,2.20527]
[1625462802635,2.20527,2253.3,2253.2,2.20527]
[1625462808501,2.20527,2253.3,2253.2,7e-05]
[1625462808602,3.20527,2253.3,2251.7,14.4685]
[1625462808903,5.0,2253.2,2251.4,5.0]
[1625462809003,1.0,2253.1,2251.4,5.0]
[1625462809202,45.7553,2251.5,2251.4,5.0]
[1625462809303,53.49774,2251.5,2251.4,5.0]
[1625462809404,7.74244,2251.5,2251.4,5.0]
[1625462809608,6.74244,2251.5,2251.4,5.0]
[1625462810864,2.7431,2252.5,2251.4,5.0]
[1625462810966,0.8944,2253.1,2251.4,7.4703]
[1625462811063,14.7896,2253.3,2251.4,7.4703]
[1625462811265,2.20527,2252.3,2252.0,2.20527]
[1625462811379,2.20527,2252.3,2252.0,5.74187]
[1625462811483,2.20527,2252.3,2252.0,3.5366]
[1625462812428,2.20527,2252.3,2251.4,5.0]
[1625462813084,2.20527,2252.3,2251.5,16.152531]
[1625462813186,2.20527,2252.3,2251.5,19.207731]
[1625462813288,2.20527,2252.3,2252.2,50.1111]
[1625462813391,2.20527,2252.3,2252.0,5.21127]
[1625462813489,2.20527,2252.3,2252.0,2.20527]
[1625462813589,2.20527,2252.3,2252.2,15.998066]
[1625462813889,2.20527,2252.3,2252.0,2.20527]
[1625462815295,4.41054,2252.3,2252.0,2.20527]
[1625462815898,4.41054,2252.3,2252.1,16.081058]
[1625462816800,4.41054,2252.3,2252.0,2.20527]
[1625462816904,7.41794,2252.3,2252.0,2.20527]
[1625462817000,8.41794,2252.3,2252.0,2.20527]
[1625462818552,7.41794,2252.3,2252.0,2.20527]
[1625462820056,1.0,2252.2,2252.0,2.20527]
[1625462821209,1.0,2252.2,2251.4,5.0]
[1625462821309,2.20527,2251.6,2251.5,2.20527]
[1625462821412,4.56287,2251.6,2251.5,2.20527]
[1625462824243,5.56287,2251.6,2251.4,5.0]
[1625462824640,38.9927,2251.5,2251.4,5.0]
[1625462824741,39.9927,2251.5,2251.4,5.0]
[1625462826695,1.0,2251.5,2251.4,5.0]
[1625462829759,2.20527,2251.6,2251.4,5.0]
[1625462829857,2.20527,2251.6,2251.4,7.3863]
[1625462829958,1.0,2253.2,2251.4,23.384358]
[1625462830059,1.0,2253.2,2251.5,43.2793]
[1625462830413,1.0,2253.2,2251.6,16.076811]
[1625462831210,1.0,2253.2,2251.4,5.0]
[1625462831311,3.5986,2253.2,2251.4,5.0]
[1625462831411,2.20527,2252.1,2252.0,2.20527]
[1625462831510,6.10987,2252.1,2252.0,2.20527]
[1625462831962,6.10987,2252.1,2251.4,5.0]
[1625462833421,4.41054,2251.5,2251.4,5.0]
[1625462833524,51.32244,2251.5,2251.4,5.0]
[1625462834832,8.23434,2251.5,2251.4,5.0]
[1625462836791,5.41054,2251.5,2251.4,5.0]
[1625462836991,4.41054,2251.5,2251.4,5.0]
[1625462837194,5.41054,2251.5,2251.4,5.0]
[1625462837795,4.41054,2251.5,2251.4,5.0]
[1625462838097,5.41054,2251.5,2251.4,5.0]
[1625462838194,4.41054,2251.5,2251.4,5.0]
[1625462838493,52.49004,2251.5,2251.4,5.0]
[1625462838993,4.41054,2251.5,2251.4,5.0]
[1625462839193,5.41054,2251.5,2251.4,5.0]
[1625462839698,43.84714,2251.5,2251.4,5.0]
[1625462840551,5.41054,2251.5,2251.4,5.0]
[1625462841049,5.41054,2251.5,2251.4,4.04]
[1625462843157,5.41054,2251.5,2251.4,2.7459]
[1625462844171,5.41054,2251.5,2250.4,2.20527]
[1625462844271,10.41054,2251.5,2250.2,2.20527]
[1625462844523,5.41054,2251.5,2250.2,2.20527]
[1625462844622,10.41054,2251.5,2250.2,2.20527]
[1625462845280,5.41054,2251.5,2250.2,2.20527]
[1625462845482,4.41054,2250.3,2250.2,2.20527]
[1625462846087,2.9961,2251.7,2250.2,2.20527]
[1625462846183,1.26199468,2253.1,2251.5,44.1662]
[1625462846283,1.26199468,2253.1,2250.2,4.47797]
[1625462846383,1.26199468,2253.1,2250.3,14.18]
[1625462846583,14.7896,2253.3,2250.3,14.18]
[1625462846694,14.7896,2253.3,2250.3,19.18]
[1625462846785,1.0,2253.2,2250.4,15.99172]
[1625462846983,1.0,2253.2,2250.5,5.0]
[1625462847334,1.0,2253.2,2250.6,16.111781]
[1625462847534,2.20527,2252.5,2252.4,2.20527]
[1625462848640,5.69937,2252.5,2252.4,2.20527]
[1625462849551,8.90464,2252.5,2252.4,2.20527]
[1625462849866,7.90464,2252.5,2252.4,2.20527]
[1625462857826,7.90464,2252.5,2252.4,18.377359]
[1625462858029,7.90464,2252.5,2252.4,2.20527]
[1625462858227,8.90464,2252.5,2252.4,2.20527]
[1625462858835,7.90464,2252.5,2252.4,2.20527]
[1625462859786,7.90464,2252.5,2252.4,18.258246]
[1625462860197,7.90464,2252.5,2252.4,2.20527]
[1625462860942,3.4941,2252.5,2252.4,2.20527]
[1625462861038,1.0,2253.1,2252.4,2.20527]
[1625462861139,1.0,2253.1,2252.4,18.378412]
[1625462861592,3.20527,2253.1,2252.4,18.378412]
[1625462863547,5.41054,2253.1,2253.0,2.20527]
[1625462863646,5.41054,2253.1,2252.4,18.378412]
[1625462863849,5.41054,2253.1,2252.4,2.20527]
[1625462864249,5.41054,2253.1,2252.5,16.229593]
[1625462865603,2.20527,2252.6,2252.5,16.229593]
[1625462869770,1.0,2253.3,2252.5,18.486493]
[1625462871680,3.20527,2253.3,2253.2,2.20527]
[1625462871780,3.20527,2253.3,2253.2,5.46357]
[1625462873438,3.20527,2253.3,2253.2,3.2583]
[1625462874288,2.20527,2253.3,2253.2,3.2583]
[1625462874991,2.20527,2253.3,2253.2,19.404064]
[1625462875945,1.0,2253.5,2253.2,19.404064]
[1625462877094,1.0,2253.5,2253.2,3.2583]
[1625462877194,1.0,2253.5,2251.7,1.30225481]
[1625462877294,4.5341,2253.5,2251.7,1.30225481]
[1625462877395,47.7,2253.1,2251.7,1.30225481]
[1625462877748,49.90527,2253.1,2253.0,2.20527]
[1625462878502,50.90527,2253.1,2253.0,2.20527]
[1625462879049,49.90527,2253.1,2253.0,2.20527]
[1625462879150,50.90527,2253.1,2251.5,14.992]
[1625462879750,2.20527,2252.6,2252.5,2.20527]
[1625462881704,4.41054,2252.6,2252.5,2.20527]
[1625462882954,47.7,2253.1,2252.5,18.425199]
[1625462883056,1.0,2253.0,2252.5,20.762999]
[1625462883156,47.7,2253.1,2252.5,20.762999]
[1625462883709,49.90527,2253.1,2253.0,2.20527]
[1625462883809,50.90527,2253.1,2253.0,2.20527]
[1625462885069,3.20527,2253.1,2253.0,2.20527]
[1625462885522,3.20527,2253.1,2253.0,5.67697]
[1625462885629,2.20527,2253.1,2253.0,5.67697]
[1625462885720,2.20527,2253.1,2253.0,7.88224]
[1625462885933,1.0,2253.5,2253.0,7.88224]
[1625462886026,1.0,2253.5,2253.0,24.039524]
[1625462887729,3.20527,2253.5,2253.3,2.20527]
[1625462888133,2.20527,2253.5,2253.3,2.20527]
[1625462888575,1.2778567,2254.4,2253.3,2.20527]
[1625462888671,1.2778567,2254.4,2253.4,16.115204]
[1625462888951,1.27819799,2254.5,2253.4,16.115204]
[1625462889241,2.27819799,2254.5,2253.4,16.115204]
[1625462889442,1.0,2254.5,2253.4,16.115204]
[1625462889740,2.20527,2254.3,2254.1,2.20527]
[1625462889840,2.20527,2254.3,2254.1,4.40267]
[1625462890143,2.20527,2254.5,2254.1,4.40267]
[1625462890545,2.20527,2254.5,2254.2,16.002003]
[1625462891047,1.28052748,2255.2,2254.2,16.002003]
[1625462891248,1.0,2255.1,2254.2,16.002003]
[1625462891850,2.20527,2254.6,2254.5,2.20527]
[1625462891947,3.20527,2254.6,2254.5,2.20527]
[1625462893051,2.20527,2254.6,2254.5,2.20527]
[1625462893251,4.27816046,2255.7,2254.5,2.20527]
[1625462893353,1.28046046,2255.7,2254.5,2.20527]
[1625462893556,59.42907149,2255.8,2254.5,2.20527]
[1625462893651,59.42907149,2255.8,2254.6,16.139318]
[1625462893855,2.20527,2254.7,2254.6,16.139318]
[1625462898366,2.20527,2254.8,2254.6,16.139318]
[1625462898475,2.20527,2254.8,2254.6,19.057918]
[1625462899740,1.0,2255.7,2254.6,19.057918]
[1625462899838,2.20527,2255.3,2255.2,2.20527]
[1625462899991,2.20527,2255.3,2255.2,4.63397]
[1625462900091,3.20527,2255.3,2255.2,4.63397]
[1625462900291,43.5613,2255.8,2255.2,4.63397]
[1625462900392,1.0,2255.7,2255.2,4.63397]
[1625462901243,1.0,2255.7,2255.2,2.20527]
[1625462901847,2.20527,2255.3,2255.2,2.20527]
[1625462901947,3.20527,2255.3,2255.2,2.20527]
[1625462902049,5.54477,2255.3,2255.2,2.20527]
[1625462902699,4.54477,2255.3,2255.2,2.20527]
[1625462904105,5.54477,2255.3,2255.2,2.20527]
[1625462904505,4.54477,2255.3,2255.2,2.20527]
[1625462904605,2.20527,2255.3,2255.2,2.20527]
[1625462905205,3.20527,2255.3,2255.2,2.20527]
[1625462905608,5.95807,2255.3,2255.2,2.20527]
[1625462906512,4.95807,2255.3,2255.2,2.20527]
[1625462906760,5.95807,2255.3,2255.2,2.20527]
[1625462911785,3.20527,2255.3,2255.2,2.20527]
[1625462912890,5.49067,2255.3,2255.2,2.20527]
[1625462920266,4.49067,2255.3,2255.2,2.20527]
[1625462920466,5.49067,2255.3,2255.2,2.20527]
[1625462921226,4.49067,2255.3,2255.2,2.20527]
[1625462921375,2.20527,2255.3,2255.2,2.20527]
[1625462923382,1.0,2255.5,2255.2,2.20527]
[1625462923483,0.8924,2257.0,2255.2,2.20527]
[1625462923584,5.0,2257.5,2255.2,2.20527]
[1625462923884,5.0,2257.5,2255.3,16.095454]
[1625462924085,2.20527,2256.4,2256.3,2.20527]
[1625462924691,3.20527,2256.4,2256.3,2.20527]
[1625462926045,5.41054,2256.4,2256.3,2.20527]
[1625462930161,5.41054,2256.4,2255.5,2.20527]
[1625462930760,54.8581,2255.7,2255.5,2.20527]
[1625462930859,58.2741,2255.7,2255.5,2.20527]
[1625462931110,59.2741,2255.7,2255.5,2.20527]
[1625462934024,59.2741,2255.7,2253.5,14.1366]
[1625462934549,2.20527,2254.9,2254.8,2.20527]
[1625462934652,6.04087,2254.9,2254.8,2.20527]
[1625462935333,48.5558,2253.6,2253.5,14.1366]
[1625462935484,51.3365,2253.6,2253.5,14.1366]
[1625462935638,51.3365,2253.6,2252.2,1.29666044]
[1625462935882,2.7807,2253.6,2252.2,1.29666044]
[1625462935985,2.7807,2253.6,2253.5,16.094971]
[1625462936182,2.7807,2253.6,2253.5,20.505511]
[1625462936441,2.20527,2253.9,2253.5,20.505511]
[1625462937185,3.20527,2254.1,2253.5,20.505511]
[1625462937634,2.20527,2254.1,2253.5,20.505511]
[1625462938187,2.20527,2254.1,2254.0,4.41054]
[1625462938285,54.878,2254.7,2254.0,6.57164]
[1625462938486,54.878,2254.7,2254.0,22.695867]
[1625462938587,1.0,2254.6,2254.0,22.695867]
[1625462940190,2.20527,2254.5,2254.3,2.20527]
[1625462940293,3.20527,2254.5,2254.3,2.20527]
[1625462943047,3.20527,2254.5,2254.0,2.20527]
[1625462943897,6.17097,2254.5,2254.0,2.20527]
[1625462944300,2.20527,2254.1,2254.0,2.20527]
[1625462944399,3.20527,2254.1,2254.0,2.20527]
[1625462945758,3.20527,2254.1,2252.3,1.30040378]
[1625462945857,37.3121,2253.3,2252.3,1.30040378]
[1625462945958,39.8608,2253.3,2252.3,1.30040378]
[1625462946059,39.8608,2253.3,2251.9,28.3413]
[1625462946060,1.0,2253.2,2252.1,1.30050844]
[1625462946258,3.20527,2253.2,2253.1,4.41054]
[1625462955746,3.20527,2253.2,2253.1,6.82724]
[1625462955844,2.20527,2253.2,2253.1,6.82724]
[1625462956245,2.20527,2253.2,2253.1,23.027572]
[1625462956346,1.0,2254.5,2253.1,23.027572]
[1625462958248,1.0,2254.5,2254.1,2.20527]
[1625462958349,2.20527,2254.3,2254.1,5.10857]
[1625462958449,1.0,2254.2,2254.1,5.10857]
[1625462959955,2.20527,2254.3,2254.1,5.10857]
[1625462961510,2.20527,2254.3,2254.2,16.046554]
[1625462962313,44.4799,2254.6,2254.2,16.046554]
[1625462963265,43.4799,2254.6,2254.2,16.046554]
[1625462963677,44.4799,2254.6,2254.2,16.046554]
[1625462963775,43.4799,2254.6,2254.2,16.046554]
[1625462963976,2.20527,2255.1,2254.2,16.046554]
[1625462964374,2.20527,2255.1,2255.0,4.64577]
[1625462964775,1.0,2255.3,2255.0,4.64577]
[1625462965526,54.8581,2255.7,2255.0,4.64577]
[1625462965625,1.0,2255.6,2255.0,4.64577]
[1625462966377,3.20527,2255.6,2255.5,2.20527]
[1625462966477,3.20527,2255.6,2255.5,5.58797]
[1625462969748,3.20527,2255.6,2255.5,3.3827]
[1625462969846,6.09007,2255.6,2255.0,2.20527]
[1625462970446,4.41054,2255.1,2255.0,2.20527]
[1625462970546,5.41054,2255.1,2255.0,2.20527]
[1625462970946,7.83424,2255.1,2255.0,2.20527]
[1625462971047,7.83424,2255.1,2254.0,13.7343]
[1625462971146,44.9994,2254.6,2254.0,13.7343]
[1625462971246,1.0,2254.5,2254.0,13.7343]
[1625462972403,2.20527,2254.4,2254.1,2.20527]
[1625462972501,3.20527,2254.4,2254.1,2.20527]
[1625462972702,2.20527,2254.4,2254.1,2.20527]
[1625462973905,3.20527,2254.4,2254.1,2.20527]
[1625462974411,5.41054,2254.4,2254.1,2.20527]
[1625462974662,7.76914,2254.4,2254.1,2.20527]
[1625462975213,7.76914,2254.4,2254.0,13.7343]
[1625462975762,7.76914,2254.4,2253.8,2.20527]
[1625462976466,4.41054,2253.9,2253.8,2.20527]
[1625462976564,5.41054,2253.9,2253.8,2.20527]
[1625462976866,5.41054,2253.9,2253.4,2.20527]
[1625462977519,49.7727,2253.5,2253.4,2.20527]
[1625462977718,7.91384,2253.9,2253.4,2.20527]
[1625462978424,2.20527,2253.5,2253.4,2.20527]
[1625462980679,53.8004,2253.8,2253.4,2.20527]
[1625462981434,53.8004,2253.8,2253.4,5.73437]
[1625462981796,53.8004,2253.8,2253.5,16.040818]
[1625462982447,53.8004,2253.8,2253.7,2.20527]
[1625462983651,2.20527,2253.9,2253.7,2.20527]
[1625462983752,2.20527,2253.9,2253.7,4.66407]
[1625462984753,52.7039,2253.8,2253.7,4.66407]
[1625462985152,2.20527,2253.9,2253.7,4.66407]
[1625462986005,38.7631,2253.8,2253.7,4.66407]
[1625462986108,38.7631,2253.8,2253.7,2.20527]
[1625462986405,38.7631,2253.8,2253.4,2.20527]
[1625462986506,2.20527,2253.5,2253.4,2.20527]
[1625462989519,2.20527,2253.5,2253.2,2.20527]
[1625462990574,2.20527,2253.3,2253.2,2.20527]
[1625462992528,3.20527,2253.3,2253.2,2.20527]
[1625462992927,3.20527,2253.3,2252.8,2.20527]
[1625462993736,41.6465,2252.9,2252.8,2.20527]
[1625462994535,43.85177,2252.9,2252.8,2.20527]
[1625462995588,44.85177,2252.9,2252.8,2.20527]
[1625462995889,44.85177,2252.9,2252.5,2.20527]
[1625462995890,48.31307,2252.9,2252.5,2.20527]
[1625462996589,2.20527,2252.6,2252.5,2.20527]
[1625462996691,3.20527,2252.6,2252.5,2.20527]
[1625462997092,3.20527,2252.6,2251.3,1.30539029]
[1625462997342,3.20527,2252.6,2251.2,16.24679471]
[1625462997700,51.4583,2251.8,2251.2,14.9414]
[1625462997800,2.7275,2252.1,2251.3,16.033454]
[1625462997902,1.0,2252.0,2251.3,16.033454]
[1625462998105,2.20527,2252.6,2251.3,16.033454]
[1625462998201,1.0,2252.5,2251.3,16.033454]
[1625462998301,38.6587,2252.0,2251.3,16.033454]
[1625462998603,2.20527,2251.9,2251.8,2.20527]
[1625462999406,38.6587,2252.0,2251.8,2.20527]
[1625463001012,39.6587,2252.0,2251.8,2.20527]
[1625463001273,39.6587,2252.0,2251.6,2.20527]
[1625463001471,43.0452,2252.0,2251.6,2.20527]
[1625463002624,2.20527,2251.7,2251.6,2.20527]
[1625463004036,6.04087,2251.7,2251.6,2.20527]
[1625463008236,6.04087,2251.7,2251.3,2.20527]
[1625463008337,6.04087,2251.7,2250.4,14.4602]
[1625463008687,2.20527,2250.8,2250.7,2.20527]
[1625463009188,41.41057,2250.8,2250.7,2.20527]
[1625463010697,41.41057,2250.8,2250.5,2.20527]
[1625463010698,43.61584,2250.8,2250.5,2.20527]
[1625463013199,4.41054,2250.8,2250.5,2.20527]
[1625463014667,5.41054,2250.8,2250.5,2.20527]
[1625463014759,5.41054,2250.8,2250.2,2.20527]
[1625463014959,4.41054,2250.8,2250.2,2.20527]
[1625463015358,1.27180712,2253.3,2250.3,16.129978]
[1625463015465,41.6465,2252.9,2250.3,19.473878]
[1625463015659,1.0,2252.1,2250.3,19.473878]
[1625463016764,2.20527,2251.2,2251.1,2.20527]
[1625463018416,2.20527,2251.2,2251.1,18.304282]
[1625463018719,14.3041,2252.2,2251.1,18.304282]
[1625463018919,14.3041,2252.2,2251.1,21.370782]
[1625463019275,15.3041,2252.2,2251.1,21.370782]
[1625463019627,1.0,2252.2,2251.1,21.370782]
[1625463019724,5.0,2253.6,2251.1,21.370782]
[1625463020225,14.3274,2253.5,2251.1,21.370782]
[1625463020374,5.0,2253.4,2251.1,36.176182]
[1625463020476,1.0,2253.3,2251.1,36.176182]
[1625463020776,2.20527,2252.0,2251.9,2.20527]
[1625463022741,2.20527,2252.5,2251.9,2.20527]
[1625463022842,1.0,2252.4,2251.9,2.20527]
[1625463022941,2.20527,2252.5,2251.9,2.20527]
[1625463024098,2.20527,2252.5,2252.0,16.239085]
[1625463024746,1.0,2252.4,2252.0,16.239085]
[1625463028058,14.3274,2253.5,2252.0,16.239085]
[1625463028157,14.3274,2253.5,2252.5,55.5567]
[1625463028158,1.0,2253.3,2252.5,55.5567]
[1625463028255,1.0,2253.3,2252.5,58.476]
[1625463028355,1.0,2253.3,2252.5,2.9193]
[1625463028858,2.20527,2252.6,2252.5,5.12457]
[1625463028956,3.20527,2252.6,2252.5,5.12457]
[1625463030677,3.20527,2252.6,2252.5,2.20527]
[1625463030877,3.20527,2252.6,2252.5,4.41054]
[1625463030979,2.20527,2252.6,2252.5,4.41054]
[1625463031483,2.20527,2252.6,2252.5,20.466127]
[1625463032082,1.0,2253.4,2252.5,20.466127]
[1625463032182,1.0,2253.4,2252.5,23.447327]
[1625463032292,14.9975,2253.8,2252.5,23.447327]
[1625463032384,15.9975,2253.8,2252.5,23.447327]
[1625463032684,15.9975,2253.8,2252.6,55.658]
[1625463032886,2.20527,2253.5,2253.3,2.20527]
[1625463034306,2.20527,2253.5,2253.4,16.225497]
[1625463034794,2.20527,2253.5,2253.4,18.555797]
[1625463034895,4.41054,2253.5,2253.4,18.555797]
[1625463036698,4.41054,2253.5,2253.4,16.225497]
[1625463043731,5.41054,2253.5,2253.4,16.225497]
[1625463043834,5.41054,2253.5,2253.3,2.20527]
[1625463044032,4.41054,2253.5,2253.3,2.20527]
[1625463044734,4.41054,2253.5,2253.4,16.116881]
[1625463046591,5.41054,2253.5,2253.3,2.20527]
[1625463046692,8.25924,2253.5,2253.3,2.20527]
[1625463046791,7.25924,2253.5,2253.3,2.20527]
[1625463049447,4.41054,2253.5,2253.4,16.130559]
[1625463050597,1.0,2253.9,2253.4,19.646459]
[1625463050699,1.0,2254.2,2253.4,19.646459]
[1625463050853,6.03836386,2255.4,2253.4,19.646459]
[1625463050953,1.28055008,2255.7,2253.4,19.646459]
[1625463051051,2.20527,2255.2,2255.1,2.20527]
[1625463051151,2.20527,2255.2,2255.1,5.59817]
[1625463051751,3.20527,2255.2,2255.1,3.3929]
[1625463052605,3.20527,2255.2,2253.9,48.5047]
[1625463053058,3.20527,2255.2,2255.1,2.20527]
[1625463054475,3.20527,2255.2,2255.1,5.15947]
[1625463057035,1.0,2255.2,2255.1,5.15947]
[1625463058289,2.20527,2255.4,2255.1,5.15947]
[1625463058489,3.20527,2255.4,2255.1,5.15947]
[1625463059091,3.20527,2255.4,2255.3,2.20527]
[1625463060853,1.0,2255.4,2255.3,2.20527]
[1625463060950,2.20527,2255.7,2255.3,2.20527]
[1625463061045,3.20527,2255.7,2255.3,2.20527]
[1625463061155,3.20527,2255.7,2255.6,2.20527]
[1625463061846,2.20527,2255.7,2255.6,2.20527]
[1625463062496,3.20527,2255.7,2255.6,2.20527]
[1625463063097,1.0,2255.7,2255.6,2.20527]
[1625463066107,2.20527,2256.0,2255.6,2.20527]
[1625463067010,2.20527,2256.0,2255.7,16.166322]
[1625463067112,2.20527,2256.0,2255.9,2.20527]
[1625463067311,1.0,2256.2,2255.9,5.25927]
[1625463067712,1.28829209,2257.4,2255.9,5.25927]
[1625463067812,1.0,2257.3,2255.9,5.25927]
[1625463068111,1.0,2257.3,2256.0,16.062575]
[1625463069163,2.20527,2256.8,2256.7,2.20527]
[1625463069264,3.20527,2256.8,2256.7,4.95777]
[1625463071126,5.41054,2256.8,2256.7,4.95777]
[1625463072730,1.0,2256.8,2256.7,4.95777]
[1625463073130,3.20527,2256.8,2256.7,4.95777]
[1625463073938,1.0,2256.8,2256.7,4.95777]
[1625463074240,1.0,2256.9,2256.7,4.95777]
[1625463077146,2.20527,2257.0,2256.7,4.95777]
[1625463077446,2.20527,2257.0,2256.8,16.102219]
[1625463078299,1.0,2256.9,2256.8,16.102219]
[1625463083913,1.0,2256.9,2256.7,2.20527]
[1625463084378,1.0,2256.9,2255.4,28.495]
[1625463084971,1.0,2256.9,2255.5,16.169781]
[1625463085224,2.20527,2256.5,2256.4,2.20527]
[1625463085323,6.05077,2256.5,2256.4,2.20527]
[1625463085928,3.8455,2256.5,2256.4,2.20527]
[1625463087231,6.05077,2256.5,2256.4,2.20527]
[1625463088635,6.05077,2256.5,2256.1,2.20527]
[1625463089291,2.20527,2256.2,2256.1,2.20527]
[1625463089391,3.20527,2256.2,2256.1,2.20527]
[1625463090441,2.20527,2256.2,2256.1,2.20527]
[1625463090696,3.20527,2256.2,2256.1,2.20527]
[1625463092047,2.20527,2256.2,2256.1,2.20527]
[1625463093202,2.20527,2256.2,2256.1,18.215921]
[1625463094151,1.0,2256.5,2256.1,18.215921]
[1625463094256,14.5431,2258.0,2256.1,20.649721]
[1625463095258,2.20527,2257.0,2256.8,2.20527]
[1625463095458,3.20527,2257.0,2256.8,2.20527]
[1625463097319,2.20527,2256.9,2256.8,2.20527]
[1625463097518,3.20527,2256.9,2256.8,2.20527]
[1625463098423,1.0,2256.9,2256.8,2.20527]
[1625463099632,2.20527,2257.0,2256.8,2.20527]
[1625463099732,2.20527,2257.0,2256.8,5.38567]
[1625463099932,2.20527,2257.0,2256.8,21.389931]
[1625463101595,1.0,2256.9,2256.8,21.389931]
[1625463103098,1.0,2256.9,2256.8,22.268331]
[1625463103198,1.0,2256.9,2256.8,21.389931]
[1625463103898,2.20527,2257.0,2256.8,21.389931]
[1625463104804,1.0,2257.2,2256.8,21.389931]
[1625463105304,1.0,2257.2,2257.1,2.20527]
[1625463105656,1.0,2257.2,2257.1,18.159621]
[1625463106608,1.0,2257.3,2257.1,2.20527]
[1625463106710,1.0,2257.2,2257.1,2.20527]
[1625463106810,2.20527,2257.4,2257.1,2.20527]
[1625463106921,4.0667,2257.3,2257.1,2.20527]
[1625463107211,4.0667,2257.3,2256.8,2.20527]
[1625463109370,2.20527,2256.9,2256.8,2.20527]
[1625463109470,3.20527,2256.9,2256.8,2.20527]
[1625463111071,2.20527,2256.9,2256.8,2.20527]
[1625463111270,1.0,2257.2,2256.8,2.20527]
[1625463111372,1.0,2257.2,2257.1,2.20527]
[1625463111673,1.0,2257.2,2257.1,18.288042]
[1625463114449,1.0,2257.3,2257.1,18.288042]
[1625463120475,1.0,2257.3,2257.1,2.20527]
[1625463121285,1.0,2257.3,2257.1,1.10687]
[1625463121680,4.143,2257.3,2255.1,0.8883]
[1625463122078,4.143,2257.3,2254.5,0.8815]
[1625463122379,53.8841,2256.7,2255.5,16.108373]
[1625463122480,1.0,2256.6,2255.5,16.108373]